fUST/lending_fUST_20240726
["ID","MTS","AMOUNT","RATE_DAILY","PERIOD"]
[333253684,1721987457476,-500.0,0.00014397,2]
[333253685,1721987457486,-1000.0,0.00014397,2]
[333253686,1721987457497,-218.646936,0.00014398,2]
[333253687,1721987457507,-151.0,0.00014398,2]
[333253688,1721987457519,-758.001641,0.00014398,2]
[333253689,1721987457531,-758.001641,0.00014398,2]
[333253690,1721987457546,-175.008127,0.00014398,2]
[333253691,1721987457556,-175.008127,0.00014398,2]
[333253692,1721987457566,-300.0,0.00014401,2]
[333253693,1721987457579,-151.0,0.00014408,2]
[333253694,1721987457590,-151.0,0.00014408,2]
[333253695,1721987457600,-280.441087,0.00014408,2]
[333253696,1721987457612,-360.20624662,0.00014408,2]
[333253697,1721987457623,-218.646936,0.00014408,2]
[333253698,1721987457634,-500.0,0.00014408,2]
[333253699,1721987457644,-758.001641,0.00014408,2]
[333253700,1721987457655,-758.001641,0.00014408,2]
[333253701,1721987457665,-151.0,0.00014408,2]
[333253702,1721987457675,-151.0,0.00014409,2]
[333253703,1721987457686,-151.0,0.00014409,2]
[333253704,1721987457697,-315.23908,0.00014409,2]
[333253705,1721987457708,-315.23908595,0.00014409,2]
[333253706,1721987457719,-151.0,0.00014409,2]
[333253707,1721987457728,-1000.0,0.00014411,2]
[333253708,1721987457738,-151.0,0.00014419,2]
[333253709,1721987457748,-1000.0,0.0001442,2]
[333253710,1721987457758,-1000.0,0.00014425,2]
[333253711,1721987457769,-1000.0,0.00014439,2]
[333253712,1721987457779,-1000.0,0.00014439,2]
[333253713,1721987457789,-3200.0,0.0001444,2]
[333253714,1721987457800,-1000.0,0.00014441,2]
[333253715,1721987457811,-321.40289914,0.00014445,2]
[333253716,1721987457822,-1000.0,0.00014452,2]
[333253717,1721987457835,-1125.80433483,0.00014453,2]
[333253718,1721987457846,-300.0,0.00014454,2]
[333253719,1721987457857,-300.0,0.00014487,2]
[333253720,1721987457867,-1000.0,0.00014488,2]
[333253721,1721987457878,-758.001641,0.00014541,2]
[333253722,1721987457890,-758.001641,0.00014541,2]
[333253723,1721987457902,-181.941623,0.00014567,2]
[333253724,1721987457914,-157.370027,0.00014615,2]
[333253725,1721987457926,-324.980083,0.00014615,2]
[333253726,1721987457937,-273.326537,0.00014615,2]
[333253727,1721987457949,-500.0,0.00014652,2]
[333253728,1721987457959,-500.0,0.00014652,2]
[333253729,1721987457970,-500.0,0.00014652,2]
[333253730,1721987457981,-500.0,0.00014652,2]
[333253731,1721987457994,-500.0,0.00014652,2]
[333253732,1721987458004,-500.0,0.00014652,2]
[333253733,1721987458016,-1032.48,0.00014652,2]
[333253734,1721987458026,-1686.25,0.00014652,2]
[333253735,1721987458037,-500.0,0.00014652,2]
[333253736,1721987458047,-921.54,0.00014652,2]
[333253737,1721987458056,-598.45,0.00014652,2]
[333253738,1721987458066,-967.8,0.00014652,2]
[333253739,1721987458076,-500.0,0.00014652,2]
[333253740,1721987458086,-500.0,0.00014652,2]
[333253741,1721987458095,-994.79,0.00014652,2]
[333253742,1721987458105,-500.0,0.00014652,2]
[333253743,1721987458115,-633.3,0.00014652,2]
[333253744,1721987458125,-500.0,0.00014652,2]
[333253745,1721987458135,-737.48,0.00014652,2]
[333253746,1721987458145,-607.08,0.00014652,2]
[333253747,1721987458155,-3024.34,0.00014652,2]
[333253748,1721987458165,-500.0,0.00014652,2]
[333253749,1721987458174,-3583.92,0.00014652,2]
[333253750,1721987458184,-777.62,0.00014652,2]
[333253751,1721987458193,-623.2,0.00014652,2]
[333253752,1721987458203,-500.0,0.00014652,2]
[333253753,1721987458212,-1162.08,0.00014652,2]
[333253754,1721987458221,-1141.69,0.00014652,2]
[333253755,1721987458231,-5976.89,0.00014652,2]
[333253756,1721987458241,-594.68185143,0.00014652,2]
[333253757,1721987458250,-1192.34,0.00014652,2]
[333253758,1721987458260,-500.0,0.00014652,2]
[333253759,1721987458270,-929.05,0.00014652,2]
[333253760,1721987458280,-1021.65,0.00014652,2]
[333253761,1721987458289,-500.0,0.00014652,2]
[333253762,1721987458299,-866.2,0.00014652,2]
[333253763,1721987458308,-567.98,0.00014652,2]
[333253764,1721987458317,-500.0,0.00014652,2]
[333253765,1721987458327,-880.03,0.00014652,2]
[333253766,1721987458337,-500.0,0.00014652,2]
[333253767,1721987458347,-332.88373468,0.00014661,2]
[333253768,1721987458357,-1108.05,0.00014661,2]
[333253769,1721987458366,-200.0859661,0.00014661,2]
[333253770,1721987458377,-450.71822587,0.00014661,2]
[333253771,1721987458387,-508.20413449,0.00014661,2]
[333253772,1721987458396,-704.05,0.00014661,2]
[333253773,1721987458406,-799.26,0.00014661,2]
[333253774,1721987458416,-513.76842084,0.00014661,2]
[333253775,1721987458425,-500.0,0.00014661,2]
[333253776,1721987458435,-500.0,0.00014661,2]
[333253777,1721987458444,-566.23,0.00014661,2]
[333253778,1721987458454,-679.45,0.00014661,2]
[333253779,1721987458463,-1167.37,0.00014661,2]
[333253780,1721987458473,-500.0,0.00014661,2]
[333253781,1721987458482,-500.0,0.00014661,2]
[333253782,1721987458491,-500.0,0.00014661,2]
[333253783,1721987458501,-500.0,0.00014661,2]
[333253784,1721987458511,-896.48,0.00014661,2]
[333253785,1721987458523,-780.57,0.00014661,2]
[333253786,1721987458536,-1179.76,0.00014661,2]
[333253787,1721987458550,-500.0,0.00014661,2]
[333253788,1721987458560,-520.34,0.00014661,2]
[333253789,1721987458570,-500.0,0.00014661,2]
[333253790,1721987458580,-738.27,0.00014661,2]
[333253791,1721987458590,-746.78,0.00014661,2]
[333253792,1721987458599,-500.0,0.00014661,2]
[333253793,1721987458609,-609.73,0.00014661,2]
[333253794,1721987458622,-500.0,0.00014661,2]
[333253795,1721987458632,-700.99,0.00014661,2]
[333253796,1721987458642,-442.54353364,0.00014661,2]
[333253797,1721987458651,-2567.93,0.00014661,2]
[333253798,1721987458661,-500.0,0.00014661,2]
[333253799,1721987458671,-1329.26,0.00014661,2]
[333253800,1721987458680,-1300.1,0.00014661,2]
[333253801,1721987458690,-1890.19,0.00014661,2]
[333253802,1721987458700,-1929.80683405,0.00014661,2]
[333253804,1721987632350,9326.7357867,0.000249,120]
[333253858,1721988069781,-200.0,0.0001,2]
[333253861,1721988114077,200.0,0.0001,2]
[333253870,1721988181660,200.0,0.0001,2]
[333253873,1721988208916,154.77557542,9.999e-05,2]
[333253908,1721988309475,248.40320812,9.999e-05,2]
[333253911,1721988313933,222.1676685,9.999e-05,2]
[333253923,1721988371252,155.61166323,9.999e-05,2]
[333253928,1721988456905,243.32878953,9.999e-05,2]
[333253936,1721988552476,850.04414428,9.999e-05,2]
[333254045,1721988632772,-166.666666,0.00012383,2]
[333254047,1721988632783,-21732.6821386,0.0001265,2]
[333254049,1721988632792,-166.666666,0.00012721,2]
[333254050,1721988632802,-166.666666,0.00013058,2]
[333254052,1721988632811,-166.666666,0.00013396,2]
[333254054,1721988632821,-200.0,0.00013425,2]
[333254056,1721988632830,-4279.67778418,0.00013535,2]
[333254058,1721988632839,-3095.45677268,0.00013719,2]
[333254060,1721988632849,-166.666666,0.00013734,2]
[333254062,1721988632858,-430.8713912,0.00013753,2]
[333254063,1721988632867,-1409.0,0.00013762,2]
[333254065,1721988632877,-378.45286816,0.000138,3]
[333254067,1721988632887,-67380.8826626,0.0001381,2]
[333254069,1721988632896,-500.0,0.00013819,2]
[333254071,1721988632906,-2669.43,0.00013819,2]
[333254073,1721988632916,-658.57,0.00013819,2]
[333254075,1721988632926,-828.99,0.00013819,2]
[333254077,1721988632938,-4980.74,0.00013819,2]
[333254079,1721988632947,-774.21,0.00013819,2]
[333254081,1721988632957,-500.0,0.00013819,2]
[333254083,1721988632966,-2986.6,0.00013819,2]
[333254085,1721988632976,-951.41,0.00013819,2]
[333254087,1721988632986,-721.83,0.00013819,2]
[333254089,1721988632995,-993.62,0.00013819,2]
[333254091,1721988633005,-733.36,0.00013819,2]
[333254093,1721988633017,-851.37,0.00013819,2]
[333254095,1721988633027,-163.71453172,0.00013819,2]
[333254097,1721988633036,-2356.91,0.00013819,2]
[333254099,1721988633046,-282.51699417,0.00013819,2]
[333254101,1721988633056,-475.90097054,0.00013819,2]
[333254102,1721988633066,-257.07845697,0.00013819,2]
[333254104,1721988633076,-235.14598203,0.00013819,2]
[333254106,1721988633086,-500.0,0.00013819,2]
[333254108,1721988633095,-500.0,0.00013819,2]
[333254110,1721988633105,-500.0,0.00013819,2]
[333254112,1721988633114,-500.0,0.00013819,2]
[333254114,1721988633124,-500.0,0.00013819,2]
[333254116,1721988633133,-10751.13994923,0.00013819,2]
[333254118,1721988633145,-1590.67144333,0.00013819,2]
[333254309,1721988642470,-500.0,0.00013809,2]
[333254312,1721988642482,-500.0,0.00013819,2]
[333254314,1721988642493,-500.0,0.00013819,2]
[333254315,1721988642504,-500.0,0.00013819,2]
[333254316,1721988642515,-500.0,0.00013819,2]
[333254317,1721988642526,-500.0,0.00013819,2]
[333254318,1721988642538,-500.0,0.00013819,2]
[333254319,1721988642548,-1186.63,0.00013819,2]
[333254320,1721988642558,-5574.7817607,0.00013819,2]
[333254321,1721988642572,-49464.28950934,0.00013819,2]
[333254322,1721988642583,-500.0,0.0001382,2]
[333254323,1721988642595,-500.0,0.0001382,2]
[333254324,1721988642607,-500.0,0.0001382,2]
[333254325,1721988642619,-923.37,0.0001382,2]
[333254326,1721988642630,-500.0,0.0001382,2]
[333254327,1721988642640,-500.0,0.0001382,2]
[333254328,1721988642650,-500.90516344,0.0001382,2]
[333254329,1721988642661,-150.0,0.0001382,2]
[333254330,1721988642672,-501.12036414,0.0001382,2]
[333254331,1721988642681,-554.22845092,0.0001382,2]
[333254332,1721988642690,-512.05474877,0.0001382,2]
[333254333,1721988642700,-500.0,0.0001382,2]
[333254334,1721988642709,-500.0,0.0001382,2]
[333254335,1721988642718,-586.7,0.0001382,2]
[333254336,1721988642728,-501.23561287,0.0001382,2]
[333254337,1721988642737,-519.40026056,0.0001382,2]
[333254338,1721988642747,-666.05,0.0001382,2]
[333254339,1721988642756,-352.77842015,0.0001382,2]
[333254340,1721988642766,-501.19685897,0.0001382,2]
[333254341,1721988642775,-500.0,0.0001382,2]
[333254342,1721988642785,-500.0,0.0001382,2]
[333254343,1721988642795,-503.38367874,0.0001382,2]
[333254344,1721988642804,-362.45556053,0.0001382,2]
[333254345,1721988642814,-500.0,0.0001382,2]
[333254346,1721988642823,-500.0,0.0001382,2]
[333254347,1721988642833,-500.0,0.0001382,2]
[333254348,1721988642843,-566.2,0.0001382,2]
[333254349,1721988642854,-500.0,0.0001382,2]
[333254351,1721988642863,-505.26357198,0.0001382,2]
[333254352,1721988642872,-972.81,0.0001382,2]
[333254353,1721988642882,-500.0,0.0001382,2]
[333254354,1721988642891,-510.81198342,0.0001382,2]
[333254356,1721988642901,-500.0,0.0001382,2]
[333254358,1721988642910,-504.78651677,0.0001382,2]
[333254360,1721988642920,-500.0,0.0001382,2]
[333254362,1721988642931,-505.20594028,0.0001382,2]
[333254364,1721988642943,-510.47580727,0.0001382,2]
[333254366,1721988642952,-500.0,0.0001382,2]
[333254368,1721988642962,-500.0,0.0001382,2]
[333254370,1721988642971,-502.98243977,0.0001382,2]
[333254372,1721988642980,-503.96326173,0.0001382,2]
[333254374,1721988642990,-747.07,0.0001382,2]
[333254377,1721988642999,-500.0,0.0001382,2]
[333254380,1721988643008,-422.7258482,0.0001382,2]
[333254382,1721988643019,-359.46603603,0.0001382,2]
[333254384,1721988643029,-555.88,0.0001382,2]
[333254385,1721988643038,-503.36752975,0.0001382,2]
[333254386,1721988643048,-500.0,0.0001382,2]
[333254387,1721988643058,-500.0,0.0001382,2]
[333254389,1721988643067,-614.57,0.0001382,2]
[333254391,1721988643076,-500.0,0.0001382,2]
[333254392,1721988643086,-650.47,0.0001382,2]
[333254393,1721988643096,-968.4,0.0001382,2]
[333254395,1721988643105,-500.0,0.0001382,2]
[333254397,1721988643114,-519.33,0.0001382,2]
[333254398,1721988643124,-500.0,0.0001382,2]
[333254400,1721988643134,-983.13,0.0001382,2]
[333254401,1721988643144,-615.23,0.0001382,2]
[333254402,1721988643155,-548.0,0.0001382,2]
[333254403,1721988643164,-500.0,0.0001382,2]
[333254404,1721988643174,-622.31,0.0001382,2]
[333254405,1721988643185,-500.0,0.0001382,2]
[333254406,1721988643195,-370.49508127,0.0001382,2]
[333254407,1721988643220,-129.50491873,0.0001382,2]
[333254408,1721988643229,-200.24691397,0.0001382,2]
[333254409,1721988643564,-299.75308603,0.0001382,2]
[333254410,1721988643574,-465.01362123,0.0001382,2]
[333254460,1721988646689,-701.9,0.00013819,2]
[333254462,1721988646699,-701.9,0.00013819,2]
[333254464,1721988646709,-34.98637877,0.0001382,2]
[333254466,1721988646720,-369.14474617,0.0001382,2]
[333254469,1721988646733,-138.96525383,0.0001382,2]
[333254471,1721988646742,-584.16,0.0001382,2]
[333254473,1721988646752,-500.0,0.0001382,2]
[333254475,1721988646762,-500.0,0.0001382,2]
[333254477,1721988646772,-500.0,0.0001382,2]
[333254478,1721988646782,-501.23,0.0001382,2]
[333254479,1721988646792,-785.19061117,0.0001382,2]
[333254530,1721988673485,200.0,0.0001,2]
[333254532,1721988738980,167.61801203,9.999e-05,2]
[333254533,1721988740033,82.05093889,0.0001,2]
[333254536,1721989454023,-941.73928157,9.999e-05,2]
[333254537,1721989454058,-293.10560774,9.999e-05,2]
[333254538,1721989454093,-235.6378508,9.999e-05,2]
[333254539,1721989454128,-849.44625482,9.999e-05,2]
[333254540,1721989454162,-19364.08209816,0.0001,2]
[333254541,1721989454200,-155.20050219,0.0001,2]
[333254542,1721989454234,-1623.39669232,0.0001,2]
[333254543,1721989454268,-4708.30389863,0.0001,2]
[333254544,1721989454301,-200.0,0.0001,2]
[333254545,1721989513250,200.0,0.0001,2]
[333254547,1721989582491,200.0,0.0001,2]
[333254548,1721989617145,-257.15,0.00010959,2]
[333254549,1721989617169,-43.65409263,0.0001137,2]
[333254552,1721989653192,200.0,0.0001,2]
[333254554,1721989722962,156.34590737,0.0001,2]
[333254777,1721989838808,-271.59909197,0.00012121,2]
[333254779,1721989838819,-271.59909197,0.00012121,2]
[333254781,1721989838830,-166.666666,0.00012158,2]
[333254784,1721989838840,-166.666666,0.0001249,2]
[333254786,1721989838851,-166.666666,0.00012821,2]
[333254788,1721989838860,-1000.0,0.00013,13]
[333254790,1721989838871,-166.666666,0.00013153,2]
[333254792,1721989838882,-200.0,0.00013425,2]
[333254794,1721989838892,-166.666666,0.00013484,2]
[333254796,1721989838901,-367.53930495,0.00013562,2]
[333254798,1721989838912,-3048.07867128,0.00013709,2]
[333254800,1721989838923,-180.21633589,0.00013716,2]
[333254802,1721989838933,-153.0,0.00013753,2]
[333254805,1721989838942,-153.0,0.00013753,2]
[333254806,1721989838952,-277.840706,0.00013753,2]
[333254808,1721989838962,-153.0,0.00013753,2]
[333254810,1721989838972,-153.0,0.00013753,2]
[333254813,1721989838982,-153.0,0.00013753,2]
[333254814,1721989838991,-153.0,0.00013753,2]
[333254815,1721989839003,-306.8676,0.00013753,2]
[333254816,1721989839013,-153.0,0.00013753,2]
[333254817,1721989839021,-180.21633587,0.00013774,2]
[333254818,1721989839031,-150.112233,0.000138,2]
[333254819,1721989839041,-179.95491988,0.00013808,2]
[333254820,1721989839050,-164.60218742,0.00013808,2]
[333254821,1721989839060,-333.13067938,0.00013808,2]
[333254822,1721989839070,-197.76189592,0.00013808,2]
[333254823,1721989839080,-500.0,0.00013808,2]
[333254824,1721989839090,-601.59454604,0.00013808,2]
[333254825,1721989839102,-500.0,0.00013808,2]
[333254826,1721989839114,-500.0,0.00013808,2]
[333254827,1721989839124,-500.0,0.00013808,2]
[333254828,1721989839136,-500.0,0.00013808,2]
[333254829,1721989839145,-500.0,0.00013808,2]
[333254830,1721989839155,-10923.5398796,0.00013808,2]
[333254901,1721989842513,-1694.98,0.00013626,2]
[333254917,1721989843718,-3303.97703853,0.00013626,2]
[333254918,1721989843728,-16241.58561991,0.00013808,2]
[333254919,1721989843738,-47254.85185331,0.00013809,2]
[333254991,1721989922759,200.0,0.0001,2]
[333254992,1721989993716,200.0,0.0001,2]
[333254993,1721990020787,-2039.1,0.000149,31]
[333254994,1721990020812,-2039.1,0.000149,31]
[333254995,1721990020841,-2039.1,0.000149,31]
[333254996,1721990020869,-2039.1,0.000149,31]
[333254997,1721990020893,-2039.1,0.000149,31]
[333254998,1721990020922,-2039.1,0.000149,31]
[333254999,1721990020948,-2039.1,0.000149,31]
[333255000,1721990020979,-2039.1,0.000149,31]
[333255001,1721990021006,-2039.1,0.000149,31]
[333255002,1721990021031,-2039.1,0.000149,31]
[333255003,1721990021058,-2039.1,0.000149,31]
[333255004,1721990021087,-2039.1,0.000149,31]
[333255005,1721990021114,-2039.1,0.000149,31]
[333255006,1721990021142,-2039.1,0.000149,31]
[333255007,1721990021170,-2039.1,0.000149,31]
[333255008,1721990021196,-2039.1,0.000149,31]
[333255009,1721990021224,-2039.1,0.000149,31]
[333255010,1721990021250,-2039.1,0.000149,31]
[333255011,1721990021277,-2039.1,0.000149,31]
[333255012,1721990021304,-2039.1,0.000149,31]
[333255013,1721990032155,1631.48,0.000149,31]
[333255014,1721990032214,1631.48,0.000149,31]
[333255015,1721990032264,1631.48,0.000149,31]
[333255016,1721990032314,1631.48,0.000149,31]
[333255017,1721990032368,1631.48,0.000149,31]
[333255018,1721990032431,1060.6,0.000149,31]
[333255019,1721990054607,-570.88,0.000149,31]
[333255020,1721990054636,-1631.48,0.000149,31]
[333255021,1721990054662,-1631.48,0.000149,31]
[333255022,1721990054687,-1631.48,0.000149,31]
[333255023,1721990054712,-1631.48,0.000149,31]
[333255024,1721990054740,-1631.48,0.000149,31]
[333255025,1721990054768,-1631.48,0.000149,31]
[333255026,1721990054796,-1631.48,0.000149,31]
[333255027,1721990054823,-1631.48,0.000149,31]
[333255028,1721990054850,-1631.48,0.000149,31]
[333255029,1721990054876,-1631.48,0.000149,31]
[333255030,1721990054901,-1631.48,0.000149,31]
[333255031,1721990054926,-1631.48,0.000149,31]
[333255032,1721990054951,-1631.48,0.000149,31]
[333255033,1721990054979,-1631.48,0.000149,31]
[333255034,1721990062862,196.92159956,0.0001,2]
[333255039,1721990356009,239641.0,0.00024,60]
[333255040,1721990399247,62731.79093659,0.00024,60]
[333255043,1721990643934,1305.35,0.000149,31]
[333255044,1721990643975,1305.35,0.000149,31]
[333255045,1721990644023,1305.35,0.000149,31]
[333255046,1721990644097,1305.35,0.000149,31]
[333255047,1721990644168,1305.35,0.000149,31]
[333255048,1721990644236,1305.35,0.000149,31]
[333255049,1721990644444,1305.35,0.000149,31]
[333255050,1721990644493,1305.35,0.000149,31]
[333255051,1721990644568,1305.35,0.000149,31]
[333255052,1721990644666,1305.35,0.000149,31]
[333255053,1721990644721,1305.35,0.000149,31]
[333255054,1721990644775,1305.35,0.000149,31]
[333255055,1721990644831,1305.35,0.000149,31]
[333255056,1721990644882,1305.35,0.000149,31]
[333255057,1721990644931,1305.35,0.000149,31]
[333255058,1721990644973,1305.35,0.000149,31]
[333255059,1721990645028,1305.35,0.000149,31]
[333255060,1721990645109,1305.35,0.000149,31]
[333255061,1721990645174,1305.35,0.000149,31]
[333255062,1721990645271,1305.35,0.000149,31]
[333255226,1721991039989,-166.666666,0.00012166,2]
[333255228,1721991040000,-180.112632,0.00012435,2]
[333255230,1721991040010,-166.666666,0.00012498,2]
[333255232,1721991040020,-180.112632,0.00012565,2]
[333255234,1721991040030,-180.112632,0.00012694,2]
[333255236,1721991040039,-180.112632,0.00012824,2]
[333255238,1721991040049,-166.666666,0.00012829,2]
[333255240,1721991040057,-180.112632,0.00012954,2]
[333255242,1721991040066,-180.112632,0.00013083,2]
[333255244,1721991040076,-166.666666,0.00013161,2]
[333255246,1721991040086,-200.0,0.00013425,2]
[333255248,1721991040095,-160.0,0.00013471,3]
[333255251,1721991040105,-166.666666,0.00013493,2]
[333255253,1721991040114,-620.0017093,0.00013589,2]
[333255256,1721991040124,-3105.07647218,0.00013654,2]
[333255259,1721991040135,-1200.1068144,0.00013654,2]
[333255323,1721991043628,-942.7304203,0.00013654,2]
[333255324,1721991043638,-367.53930495,0.0001366,2]
[333255325,1721991043647,-553.52,0.00013661,2]
[333255326,1721991043656,-13.6898854,0.00013661,2]
[333255327,1721991043669,-486.3101146,0.00013661,2]
[333255328,1721991043683,-500.0,0.00013661,2]
[333255329,1721991043693,-441.71340621,0.00013661,2]
[333255330,1721991043705,-58.28659379,0.00013661,2]
[333255331,1721991043714,-247.96139603,0.00013661,2]
[333255351,1721991045885,-252.03860397,0.00013661,2]
[333255352,1721991045896,-557.05,0.00013661,2]
[333255353,1721991045906,-241.2568816,0.00013661,2]
[333255359,1721991072047,-1000.0,0.00015,15]
[333255360,1721991085934,-1000.0,0.00014,14]
[333255361,1721991129818,-1000.0,0.00016,16]
[333255362,1721991255769,1044.41,0.00015,31]
[333255363,1721991255922,1044.41,0.00015,31]
[333255364,1721991255980,1044.41,0.00015,31]
[333255365,1721991256045,1044.41,0.00015,31]
[333255366,1721991256112,1044.41,0.00015,31]
[333255367,1721991256170,1044.41,0.00015,31]
[333255368,1721991256247,1044.41,0.00015,31]
[333255369,1721991256298,1044.41,0.00015,31]
[333255370,1721991256351,1044.41,0.00015,31]
[333255371,1721991256412,1044.41,0.00015,31]
[333255372,1721991256476,1044.41,0.00015,31]
[333255373,1721991256529,1044.41,0.00015,31]
[333255374,1721991256593,1044.41,0.00015,31]
[333255375,1721991256652,1044.41,0.00015,31]
[333255376,1721991256725,1044.41,0.00015,31]
[333255377,1721991256905,1044.41,0.00015,31]
[333255378,1721991256938,1044.41,0.00015,31]
[333255379,1721991256974,1044.41,0.00015,31]
[333255380,1721991257010,1044.41,0.00015,31]
[333255381,1721991257041,1044.41,0.00015,31]
[333255386,1721991867592,835.63,0.00015,31]
[333255387,1721991867640,835.63,0.00015,31]
[333255388,1721991867699,835.63,0.00015,31]
[333255389,1721991867759,835.63,0.00015,31]
[333255390,1721991867830,835.63,0.00015,31]
[333255391,1721991867891,835.63,0.00015,31]
[333255392,1721991867928,835.63,0.00015,31]
[333255393,1721991867994,835.63,0.00015,31]
[333255394,1721991868063,835.63,0.00015,31]
[333255395,1721991868114,835.63,0.00015,31]
[333255396,1721991868176,835.63,0.00015,31]
[333255397,1721991868234,835.63,0.00015,31]
[333255398,1721991868293,835.63,0.00015,31]
[333255399,1721991868354,835.63,0.00015,31]
[333255400,1721991868428,835.63,0.00015,31]
[333255401,1721991868490,835.63,0.00015,31]
[333255402,1721991868532,835.63,0.00015,31]
[333255403,1721991868600,835.63,0.00015,31]
[333255404,1721991868664,835.63,0.00015,31]
[333255405,1721991868729,835.63,0.00015,31]
[333255406,1721992023326,178.98991893,9.999e-05,7]
[333255542,1721992238286,-166.666666,0.00012375,2]
[333255543,1721992238297,-166.666666,0.00012712,2]
[333255544,1721992238309,-166.666666,0.00013049,2]
[333255545,1721992238320,-814.93909914,0.00013197,2]
[333255671,1721992243533,-2280.38296445,0.00013197,2]
[333255672,1721992243543,-367.53930495,0.00013199,2]
[333255673,1721992243552,-166.666666,0.00013387,2]
[333255674,1721992243562,-200.0,0.00013425,2]
[333255675,1721992243571,-258.7431184,0.00013661,2]
[333255676,1721992243581,-500.0,0.00013661,2]
[333255677,1721992243590,-500.0,0.00013661,2]
[333255678,1721992243599,-500.0,0.00013661,2]
[333255679,1721992243608,-462.16,0.00013661,2]
[333255680,1721992243617,-500.0,0.00013661,2]
[333255681,1721992243627,-525.96,0.00013661,2]
[333255682,1721992243636,-567.21,0.00013661,2]
[333255683,1721992243645,-164.4384805,0.00013681,2]
[333255684,1721992243654,-3146.39353007,0.00013681,2]
[333255685,1721992243664,-2667.06883737,0.00013708,2]
[333255686,1721992243674,-1445.30184261,0.00013719,2]
[333255687,1721992243684,-184.49014654,0.00013719,2]
[333255688,1721992243695,-34.38177211,0.00013724,2]
[333255718,1721992396647,275.82030684,9.999e-05,2]
[333255720,1721992479443,668.59,0.00015,31]
[333255721,1721992479578,668.59,0.00015,31]
[333255722,1721992479683,668.59,0.00015,31]
[333255723,1721992479734,668.59,0.00015,31]
[333255724,1721992479843,668.59,0.00015,31]
[333255725,1721992479912,668.59,0.00015,31]
[333255726,1721992479959,668.59,0.00015,31]
[333255727,1721992480005,668.59,0.00015,31]
[333255728,1721992480060,668.59,0.00015,31]
[333255729,1721992480118,668.59,0.00015,31]
[333255730,1721992480172,668.59,0.00015,31]
[333255731,1721992480221,668.59,0.00015,31]
[333255732,1721992480276,668.59,0.00015,31]
[333255733,1721992480462,668.59,0.00015,31]
[333255734,1721992480495,668.59,0.00015,31]
[333255735,1721992480532,668.59,0.00015,31]
[333255736,1721992480565,668.59,0.00015,31]
[333255737,1721992480600,668.59,0.00015,31]
[333255738,1721992480637,364.58,0.00015,31]
[333255786,1721992630141,-304.01,0.00015,31]
[333255787,1721992630169,-668.59,0.00015,31]
[333255825,1721992912296,598.15,0.00022222,60]
[333255837,1721993091512,534.94,0.00015,31]
[333255838,1721993091577,534.94,0.00015,31]
[333255839,1721993091626,534.94,0.00015,31]
[333255840,1721993091695,534.94,0.00015,31]